fUSD/lending_fUSD_20250806
["ID","MTS","AMOUNT","RATE_DAILY","PERIOD"]
[377610674,1754453451938,-1863.47,0.00035616,14]
[377610675,1754453451947,-400.0,0.00035616,14]
[377610676,1754453451957,-400.0,0.00035616,14]
[377610677,1754453451966,-335.34429961,0.00035616,14]
[377610678,1754453452078,-400.0,0.00035616,14]
[377610679,1754453452088,-400.0,0.00035616,14]
[377610680,1754453452098,-484.52472931,0.00035616,14]
[377610681,1754453452108,-2176.49,0.00035616,14]
[377610682,1754453452117,-2032.58,0.00035616,14]
[377610683,1754453452126,-1284.67,0.00035616,14]
[377610684,1754453452135,-478.12,0.00035616,14]
[377610685,1754453452144,-610.0,0.00035616,14]
[377610686,1754453452154,-400.0,0.00035616,14]
[377610687,1754453452163,-1063.84,0.00035616,14]
[377610688,1754453452172,-1859.61,0.00035616,14]
[377610689,1754453452181,-1346.4,0.00035616,14]
[377610690,1754453452190,-400.0,0.00035616,14]
[377610691,1754453452200,-1042.28,0.00035616,14]
[377610692,1754453452208,-400.0,0.00035616,14]
[377610693,1754453452217,-857.13,0.00035616,14]
[377610694,1754453452226,-400.0,0.00035616,14]
[377610695,1754453452235,-400.0,0.00035616,14]
[377610696,1754453452244,-581.84,0.00035616,14]
[377610697,1754453452254,-400.0,0.00035616,14]
[377610698,1754453452266,-3281.66,0.00035616,14]
[377610699,1754453452275,-1143.4,0.00035616,14]
[377610700,1754453452284,-400.0,0.00035616,14]
[377610701,1754453452293,-1531.98,0.00035616,14]
[377610702,1754453452302,-400.0,0.00035616,14]
[377610703,1754453452311,-400.0,0.00035616,14]
[377610704,1754453452320,-1916.9,0.00035616,14]
[377610705,1754453452329,-2895.15,0.00035616,14]
[377610706,1754453452339,-400.0,0.00035616,14]
[377610707,1754453452350,-400.0,0.00035616,14]
[377610708,1754453452359,-1254.26,0.00035616,14]
[377610709,1754453452367,-2320.64,0.00035616,14]
[377610710,1754453452376,-2132.85,0.00035616,14]
[377610711,1754453452385,-400.0,0.00035616,14]
[377610712,1754453452394,-400.0,0.00035616,14]
[377610713,1754453452402,-3481.49,0.00035616,14]
[377610714,1754453452411,-400.0,0.00035616,14]
[377610715,1754453452421,-1748.56,0.00035616,14]
[377610716,1754453452430,-538.99,0.00035616,14]
[377610717,1754453452439,-1812.13,0.00035616,14]
[377610718,1754453452447,-744.7,0.00035616,14]
[377610719,1754453452457,-400.0,0.00035616,14]
[377610720,1754453452466,-400.0,0.00035616,14]
[377610721,1754453452475,-400.0,0.00035616,14]
[377610722,1754453452484,-478.51,0.00035616,14]
[377610723,1754453452493,-2106.34,0.00035616,14]
[377610724,1754453452502,-505.68,0.00035616,14]
[377610725,1754453452511,-400.0,0.00035616,14]
[377610726,1754453452519,-637.94,0.00035616,14]
[377610727,1754453452529,-777.59,0.00035616,14]
[377610728,1754453452537,-400.0,0.00035616,14]
[377610729,1754453452546,-400.0,0.00035616,14]
[377610730,1754453452555,-400.0,0.00035616,14]
[377610731,1754453452565,-1512.79,0.00035616,14]
[377610732,1754453452574,-1846.05,0.00035616,14]
[377610733,1754453452583,-400.0,0.00035616,7]
[377610734,1754453452592,-775.32,0.00035616,14]
[377610735,1754453452601,-603.76,0.00035616,14]
[377610736,1754453452610,-762.54,0.00035616,14]
[377610737,1754453452619,-2623.36,0.00035616,14]
[377610738,1754453452629,-400.0,0.00035616,14]
[377610739,1754453452638,-1844.97,0.00035616,14]
[377610740,1754453452647,-1616.63,0.00035616,14]
[377610741,1754453452657,-2325.69,0.00035616,14]
[377610742,1754453452666,-1161.52,0.00035616,14]
[377610743,1754453452675,-869.26,0.00035616,14]
[377610744,1754453452685,-1687.52,0.00035616,14]
[377610745,1754453452694,-1151.06,0.00035616,14]
[377610746,1754453452704,-400.0,0.00035616,2]
[377610747,1754453452712,-400.0,0.00035616,14]
[377610748,1754453452722,-400.0,0.00035616,14]
[377610749,1754453452731,-400.0,0.00035616,14]
[377610750,1754453452740,-400.0,0.00035616,14]
[377610751,1754453452749,-400.0,0.00035616,14]
[377610752,1754453452758,-400.0,0.00035616,14]
[377610753,1754453452767,-3033.95,0.00035616,14]
[377610754,1754453452776,-1375.41,0.00035616,14]
[377610755,1754453452787,-1811.21,0.00035616,14]
[377610756,1754453452797,-1693.91,0.00035616,14]
[377610757,1754453452808,-2740.99,0.00035616,14]
[377610758,1754453452818,-2776.97,0.00035616,14]
[377610759,1754453452827,-400.0,0.00035616,14]
[377610760,1754453452836,-607.02,0.00035616,14]
[377610761,1754453452848,-942.96,0.00035616,14]
[377610762,1754453452857,-1006.49,0.00035616,14]
[377610763,1754453452866,-409.88,0.00035616,14]
[377610764,1754453452875,-3147.89,0.00035616,14]
[377610765,1754453452883,-400.0,0.00035616,14]
[377610766,1754453452892,-578.6,0.00035616,14]
[377610767,1754453452901,-619.35,0.00035616,14]
[377610768,1754453452911,-400.0,0.00035616,14]
[377610769,1754453452920,-416.25,0.00035616,14]
[377610770,1754453452930,-400.0,0.00035616,14]
[377610771,1754453452940,-400.0,0.00035616,14]
[377610772,1754453452950,-973.15,0.00035616,14]
[377610773,1754453452959,-400.0,0.00035616,14]
[377610774,1754453452968,-1087.66,0.00035616,14]
[377610775,1754453452977,-400.0,0.00035616,14]
[377610776,1754453452986,-400.0,0.00035616,14]
[377610777,1754453452995,-1379.44,0.00035616,14]
[377610778,1754453453004,-400.0,0.00035616,14]
[377610779,1754453453013,-867.09,0.00035616,14]
[377610780,1754453453022,-400.0,0.00035616,14]
[377610781,1754453453031,-458.87,0.00035616,14]
[377610782,1754453453041,-3359.89,0.00035616,14]
[377610783,1754453453050,-486.79,0.00035616,14]
[377610784,1754453453059,-2476.48,0.00035616,14]
[377610785,1754453453068,-874.7,0.00035616,14]
[377610786,1754453453077,-400.0,0.00035616,14]
[377610787,1754453453086,-400.0,0.00035616,14]
[377610788,1754453453098,-776.51,0.00035616,14]
[377610789,1754453453106,-727.57,0.00035616,14]
[377610790,1754453453116,-2225.97,0.00035616,14]
[377610791,1754453453125,-1172.94,0.00035616,14]
[377610792,1754453453134,-400.0,0.00035616,14]
[377610793,1754453453143,-772.76,0.00035616,14]
[377610794,1754453453152,-3516.44,0.00035616,14]
[377610795,1754453453161,-1043.3,0.00035616,14]
[377610796,1754453453171,-1050.96,0.00035616,14]
[377610797,1754453453180,-4036.93,0.00035616,14]
[377610798,1754453453189,-400.0,0.00035616,14]
[377610799,1754453453198,-1500.32,0.00035616,14]
[377610800,1754453453207,-820.54,0.00035616,14]
[377610801,1754453453216,-427.85,0.00035616,14]
[377610802,1754453453225,-400.0,0.00035616,14]
[377610803,1754453453234,-400.0,0.00035616,14]
[377610804,1754453453243,-502.3,0.00035616,14]
[377610805,1754453453252,-400.0,0.00035616,14]
[377610806,1754453453266,-400.0,0.00035616,14]
[377610807,1754453453275,-400.0,0.00035616,14]
[377610808,1754453453284,-537.39,0.00035616,14]
[377610809,1754453453293,-2209.12,0.00035616,14]
[377610810,1754453453303,-3171.59,0.00035616,14]
[377610811,1754453453312,-2581.06,0.00035616,14]
[377610812,1754453453321,-2970.34,0.00035616,14]
[377610813,1754453453331,-1629.33,0.00035616,14]
[377610814,1754453453340,-830.7,0.00035616,14]
[377610815,1754453453350,-1437.69,0.00035616,14]
[377610816,1754453453362,-1984.07,0.00035616,14]
[377610817,1754453453371,-1653.73,0.00035616,14]
[377610818,1754453453380,-1078.12,0.00035616,14]
[377610819,1754453453389,-814.81,0.00035616,14]
[377610820,1754453453398,-908.66,0.00035616,14]
[377610821,1754453453407,-1226.31,0.00035616,14]
[377610822,1754453453417,-433.28,0.00035616,14]
[377610823,1754453453426,-1837.69,0.00035616,14]
[377610824,1754453453442,-3343.57,0.00035616,14]
[377610825,1754453453452,-400.0,0.00035616,14]
[377610826,1754453453461,-400.0,0.00035616,14]
[377610827,1754453453470,-1514.08,0.00035616,14]
[377610828,1754453453478,-2965.95,0.00035616,14]
[377610829,1754453453487,-2033.39,0.00035616,14]
[377610830,1754453453496,-1174.76,0.00035616,14]
[377610831,1754453453505,-400.0,0.00035616,14]
[377610832,1754453453514,-585.75,0.00035616,14]
[377610833,1754453453523,-1385.39,0.00035616,14]
[377610834,1754453453533,-889.72,0.00035616,14]
[377610835,1754453453542,-1843.65,0.00035616,14]
[377610836,1754453453550,-500.0,0.00035616,14]
[377610837,1754453453560,-808.98,0.00035616,14]
[377610838,1754453453569,-500.0,0.00035616,14]
[377610839,1754453453578,-2256.88,0.00035616,14]
[377610840,1754453453588,-500.0,0.00035616,14]
[377610841,1754453453601,-500.0,0.00035616,14]
[377610842,1754453453614,-500.0,0.00035616,14]
[377610843,1754453453623,-1570.25,0.00035616,14]
[377610844,1754453453632,-500.0,0.00035616,14]
[377610845,1754453453642,-400.0,0.00035616,14]
[377610846,1754453453651,-500.0,0.00035616,14]
[377610847,1754453453660,-500.0,0.00035616,14]
[377610848,1754453453669,-1436.46,0.00035616,14]
[377610849,1754453453678,-500.0,0.00035616,14]
[377610850,1754453453687,-1609.91,0.00035616,14]
[377610851,1754453453696,-500.0,0.00035616,14]
[377610852,1754453453705,-400.0,0.00035616,14]
[377610853,1754453453714,-500.0,0.00035616,14]
[377610854,1754453453723,-400.0,0.00035616,14]
[377610855,1754453453732,-500.0,0.00035616,14]
[377610856,1754453453741,-2220.41,0.00035616,14]
[377610857,1754453453750,-500.0,0.00035616,14]
[377610858,1754453453758,-500.0,0.00035616,14]
[377610859,1754453453767,-500.0,0.00035616,14]
[377610860,1754453453777,-500.0,0.00035616,14]
[377610861,1754453453786,-500.0,0.00035616,14]
[377610862,1754453453795,-1975.19,0.00035616,14]
[377610863,1754453453804,-500.0,0.00035616,14]
[377610864,1754453453813,-400.0,0.00035616,14]
[377610865,1754453453821,-486.02,0.00035616,14]
[377610866,1754453453830,-400.0,0.00035616,14]
[377610867,1754453453839,-400.0,0.00035616,14]
[377610868,1754453453849,-616.35,0.00035616,14]
[377610869,1754453453858,-400.0,0.00035616,14]
[377610870,1754453453867,-2637.74,0.00035616,14]
[377610871,1754453453876,-2401.23,0.00035616,14]
[377610872,1754453453886,-1636.44,0.00035616,14]
[377610873,1754453453895,-837.58,0.00035616,14]
[377610874,1754453453904,-1882.12,0.00035616,14]
[377610875,1754453453913,-400.0,0.00035616,14]
[377610876,1754453453921,-400.0,0.00035616,14]
[377610877,1754453453930,-400.0,0.00035616,14]
[377610878,1754453453939,-400.0,0.00035616,14]
[377610879,1754453453949,-400.0,0.00035616,14]
[377610880,1754453453958,-400.0,0.00035616,14]
[377610881,1754453453967,-684.53,0.00035616,14]
[377610882,1754453453977,-1873.42,0.00035616,14]
[377610883,1754453453986,-400.0,0.00035616,14]
[377610884,1754453453995,-1418.68,0.00035616,14]
[377610885,1754453454004,-1568.49,0.00035616,14]
[377610886,1754453454014,-1833.64,0.00035616,14]
[377610887,1754453454023,-400.0,0.00035616,14]
[377610888,1754453454033,-715.83,0.00035616,14]
[377610889,1754453454041,-400.0,0.00035616,14]
[377610890,1754453454050,-400.0,0.00035616,14]
[377610891,1754453454060,-400.0,0.00035616,14]
[377610892,1754453454069,-2724.79,0.00035616,14]
[377610893,1754453454079,-1055.41,0.00035616,14]
[377610894,1754453454088,-2533.91,0.00035616,14]
[377610895,1754453454100,-1161.65,0.00035616,14]
[377610896,1754453454110,-1629.6,0.00035616,14]
[377610897,1754453454120,-400.0,0.00035616,14]
[377610898,1754453454129,-1904.48,0.00035616,14]
[377610899,1754453454139,-768.65,0.00035616,14]
[377610900,1754453454149,-973.11,0.00035616,14]
[377610901,1754453454158,-1051.1,0.00035616,14]
[377610902,1754453454167,-731.84,0.00035616,14]
[377610903,1754453454177,-400.0,0.00035616,14]
[377610904,1754453454186,-500.0,0.00035616,14]
[377610905,1754453454195,-1800.07,0.00035616,14]
[377610906,1754453454205,-500.0,0.00035616,14]
[377610907,1754453454215,-400.0,0.00035616,14]
[377610908,1754453454225,-2063.39,0.00035616,14]
[377610909,1754453454235,-2182.43,0.00035616,14]
[377610910,1754453454244,-2250.5,0.00035616,14]
[377610911,1754453454253,-1145.59,0.00035616,14]
[377610912,1754453454267,-573.02,0.00035616,14]
[377610913,1754453454276,-500.0,0.00035616,14]
[377610914,1754453454286,-2225.25,0.00035616,14]
[377610915,1754453454295,-2307.31,0.00035616,14]
[377610916,1754453454305,-500.0,0.00035616,14]
[377610917,1754453454314,-809.49,0.00035616,14]
[377610918,1754453454324,-1856.64,0.00035616,14]
[377610919,1754453454334,-1488.53,0.00035616,14]
[377610920,1754453454343,-1902.64,0.00035616,14]
[377610921,1754453454352,-2253.88,0.00035616,14]
[377610922,1754453454361,-935.85,0.00035616,14]
[377610923,1754453454370,-1174.39,0.00035616,14]
[377610924,1754453454380,-400.0,0.00035616,14]
[377610925,1754453454389,-2804.71,0.00035616,14]
[377610926,1754453454398,-400.0,0.00035616,14]
[377610927,1754453454408,-500.0,0.00035616,14]
[377610928,1754453454417,-500.0,0.00035616,14]
[377610929,1754453454427,-500.0,0.00035616,14]
[377610930,1754453454436,-1287.63,0.00035616,14]
[377610931,1754453454445,-500.0,0.00035616,14]
[377610932,1754453454454,-500.0,0.00035616,14]
[377610933,1754453454463,-1225.53,0.00035616,14]
[377610934,1754453454472,-1169.62,0.00035616,14]
[377610935,1754453454481,-500.0,0.00035616,14]
[377610936,1754453454490,-852.92,0.00035616,14]
[377610937,1754453454499,-500.0,0.00035616,14]
[377610938,1754453454509,-500.0,0.00035616,14]
[377610939,1754453454518,-1640.49,0.00035616,14]
[377610940,1754453454527,-500.0,0.00035616,14]
[377610941,1754453454536,-500.0,0.00035616,14]
[377610942,1754453454545,-2523.85,0.00035616,14]
[377610943,1754453454554,-1160.28,0.00035616,14]
[377610944,1754453454563,-500.0,0.00035616,14]
[377610945,1754453454573,-500.0,0.00035616,14]
[377610946,1754453454582,-2007.24,0.00035616,14]
[377610947,1754453454591,-388.49950409,0.00035616,14]
[377610948,1754453454601,-2059.92,0.00035616,14]
[377610949,1754453454610,-400.0,0.00035616,14]
[377610950,1754453454619,-968.09,0.00035616,14]
[377610951,1754453454628,-400.0,0.00035616,14]
[377610952,1754453454637,-2757.27,0.00035616,14]
[377610953,1754453454646,-400.0,0.00035616,14]
[377610954,1754453454656,-586.38,0.00035616,14]
[377610955,1754453454665,-808.62,0.00035616,14]
[377610956,1754453454674,-537.19,0.00035616,14]
[377610957,1754453454683,-211.99530107,0.00035616,14]
[377610958,1754453454692,-400.0,0.00035616,14]
[377610959,1754453454701,-400.0,0.00035616,14]
[377610960,1754453454710,-2612.77,0.00035616,14]
[377610961,1754453454719,-1494.27,0.00035616,14]
[377610962,1754453454728,-400.0,0.00035616,14]
[377610963,1754453454737,-1453.72,0.00035616,14]
[377610964,1754453454746,-1959.4,0.00035616,14]
[377610965,1754453454755,-400.0,0.00035616,14]
[377610966,1754453454764,-1010.67,0.00035616,14]
[377610967,1754453454774,-1907.82,0.00035616,14]
[377610968,1754453454784,-1205.13,0.00035616,14]
[377610969,1754453454793,-1808.34,0.00035616,14]
[377610970,1754453454802,-1358.29,0.00035616,14]
[377610971,1754453454811,-1378.84,0.00035616,14]
[377610972,1754453454820,-400.0,0.00035616,14]
[377610973,1754453454832,-400.0,0.00035616,14]
[377610974,1754453454844,-465.33,0.00035616,14]
[377610975,1754453454855,-592.79,0.00035616,14]
[377610976,1754453454863,-400.0,0.00035616,14]
[377610977,1754453454873,-1934.87,0.00035616,14]
[377610978,1754453454882,-400.0,0.00035616,14]
[377610979,1754453454891,-2338.07,0.00035616,14]
[377610980,1754453454900,-400.0,0.00035616,14]
[377610981,1754453454909,-400.0,0.00035616,14]
[377610982,1754453454918,-1424.07,0.00035616,14]
[377610983,1754453454927,-2425.4,0.00035616,14]
[377610984,1754453454937,-1948.34,0.00035616,14]
[377610985,1754453454946,-400.0,0.00035616,14]
[377610986,1754453454955,-748.49,0.00035616,14]
[377610987,1754453454964,-2848.2,0.00035616,14]
[377610988,1754453454973,-1275.19,0.00035616,14]
[377610989,1754453454982,-400.0,0.00035616,14]
[377610990,1754453454991,-400.0,0.00035616,14]
[377610991,1754453455001,-1018.6,0.00035616,14]
[377610992,1754453455010,-459.84,0.00035616,14]
[377610993,1754453455019,-1763.34,0.00035616,14]
[377610994,1754453455029,-400.0,0.00035616,14]
[377610995,1754453455038,-2008.96,0.00035616,14]
[377610996,1754453455047,-1923.08,0.00035616,14]
[377610997,1754453455057,-400.0,0.00035616,14]
[377610998,1754453455066,-888.21,0.00035616,14]
[377610999,1754453455075,-400.0,0.00035616,14]
[377611000,1754453455085,-2177.37,0.00035616,14]
[377611001,1754453455094,-400.0,0.00035616,14]
[377611002,1754453455104,-676.33,0.00035616,14]
[377611003,1754453455113,-2550.35,0.00035616,14]
[377611004,1754453455123,-400.0,0.00035616,14]
[377611005,1754453455132,-2378.66,0.00035616,14]
[377611006,1754453455141,-953.94,0.00035616,14]
[377611007,1754453455151,-1704.9,0.00035616,14]
[377611008,1754453455160,-1765.34,0.00035616,14]
[377611009,1754453455169,-470.98,0.00035616,14]
[377611010,1754453455178,-511.69,0.00035616,14]
[377611011,1754453455187,-1763.53,0.00035616,14]
[377611012,1754453455196,-1854.18,0.00035616,14]
[377611013,1754453455205,-400.0,0.00035616,14]
[377611014,1754453455214,-622.26,0.00035616,14]
[377611015,1754453455223,-400.0,0.00035616,14]
[377611016,1754453455232,-400.0,0.00035616,14]
[377611017,1754453455241,-400.0,0.00035616,14]
[377611018,1754453455250,-631.9,0.00035616,14]
[377611019,1754453455263,-400.0,0.00035616,14]
[377611020,1754453455273,-400.0,0.00035616,14]
[377611021,1754453455282,-2370.24,0.00035616,14]
[377611022,1754453455291,-1193.67,0.00035616,14]
[377611023,1754453455301,-401.8833312,0.00035616,14]
[377611024,1754453455310,-3255.32,0.00035616,14]
[377611025,1754453455320,-508.56,0.00035616,14]
[377611026,1754453455329,-608.88,0.00035616,14]
[377611027,1754453455339,-400.0,0.00035616,14]
[377611028,1754453455349,-2503.02,0.00035616,14]
[377611029,1754453455358,-400.0,0.00035616,14]
[377611030,1754453455367,-406.83347487,0.00035616,14]
[377611031,1754453455377,-3322.23,0.00035616,14]
[377611032,1754453455388,-1860.84,0.00035616,14]
[377611033,1754453455396,-400.0,0.00035616,14]
[377611034,1754453455406,-1727.86,0.00035616,14]
[377611035,1754453455416,-2171.85,0.00035616,14]
[377611036,1754453455425,-1199.9,0.00035616,14]
[377611037,1754453455434,-400.0,0.00035616,14]
[377611038,1754453455443,-400.0,0.00035616,14]
[377611039,1754453455452,-1799.15,0.00035616,14]
[377611040,1754453455461,-1216.16,0.00035616,14]
[377611041,1754453455470,-1943.65,0.00035616,14]
[377611042,1754453455479,-1950.32,0.00035616,14]
[377611043,1754453455488,-1777.63,0.00035616,14]
[377611044,1754453455497,-400.0,0.00035616,14]
[377611045,1754453455506,-400.0,0.00035616,14]
[377611046,1754453455515,-400.0,0.00035616,14]
[377611047,1754453455524,-400.0,0.00035616,14]
[377611048,1754453455533,-704.42,0.00035616,14]
[377611049,1754453455542,-400.0,0.00035616,14]
[377611050,1754453455551,-820.82,0.00035616,14]
[377611051,1754453455560,-156.074612,0.00035616,14]
[377611052,1754453455569,-786.42,0.00035616,14]
[377611053,1754453455578,-2041.08,0.00035616,14]
[377611054,1754453455587,-400.0,0.00035616,14]
[377611055,1754453455596,-2121.99,0.00035616,14]
[377611056,1754453455605,-400.0,0.00035616,14]
[377611057,1754453455614,-400.0,0.00035616,14]
[377611058,1754453455623,-1671.53,0.00035616,14]
[377611059,1754453455632,-400.0,0.00035616,14]
[377611060,1754453455642,-594.87,0.00035616,14]
[377611061,1754453455650,-462.51814454,0.00035616,14]
[377611062,1754453455659,-645.55,0.00035616,14]
[377611063,1754453455668,-3323.19,0.00035616,14]
[377611064,1754453455677,-623.92,0.00035616,14]
[377611065,1754453455686,-478.63,0.00035616,14]
[377611066,1754453455695,-400.0,0.00035616,14]
[377611067,1754453455705,-2483.19,0.00035616,14]
[377611068,1754453455714,-400.0,0.00035616,14]
[377611069,1754453455723,-400.0,0.00035616,14]
[377611070,1754453455733,-400.0,0.00035616,14]
[377611071,1754453455742,-500.0,0.00035616,14]
[377611072,1754453455752,-500.0,0.00035616,14]
[377611073,1754453455761,-500.0,0.00035616,14]
[377611074,1754453455771,-500.0,0.00035616,14]
[377611075,1754453455781,-1719.97,0.00035616,14]
[377611076,1754453455791,-500.0,0.00035616,14]
[377611077,1754453455800,-1682.33,0.00035616,14]
[377611078,1754453455810,-500.0,0.00035616,14]
[377611079,1754453455819,-3232.04,0.00035616,14]
[377611080,1754453455828,-500.0,0.00035616,14]
[377611081,1754453455838,-899.83,0.00035616,14]
[377611082,1754453455847,-500.0,0.00035616,14]
[377611083,1754453455857,-400.0,0.00035616,14]
[377611084,1754453455867,-500.0,0.00035616,14]
[377611085,1754453455876,-500.0,0.00035616,14]
[377611086,1754453455885,-2151.26,0.00035616,14]
[377611087,1754453455895,-424.78,0.00035616,14]
[377611088,1754453455904,-972.41,0.00035616,14]
[377611089,1754453455914,-500.0,0.00035616,14]
[377611090,1754453455923,-400.0,0.00035616,14]
[377611091,1754453455932,-500.0,0.00035616,14]
[377611092,1754453455942,-400.0,0.00035616,14]
[377611093,1754453455952,-500.0,0.00035616,14]
[377611094,1754453455961,-500.0,0.00035616,14]
[377611095,1754453455970,-500.0,0.00035616,14]
[377611096,1754453455980,-3233.73,0.00035616,14]
[377611097,1754453455989,-500.0,0.00035616,14]
[377611098,1754453455999,-330.35035403,0.00035616,14]
[377611099,1754453456009,-956.16,0.00035616,14]
[377611100,1754453456019,-402.51547337,0.00035616,14]
[377611101,1754453456028,-208.95020558,0.00035616,14]
[377611102,1754453456037,-2116.93,0.00035616,14]
[377611103,1754453456047,-400.0,0.00035616,14]
[377611104,1754453456057,-973.76,0.00035616,14]
[377611105,1754453456067,-3175.14,0.00035616,14]
[377611106,1754453456076,-821.67,0.00035616,14]
[377611107,1754453456086,-400.0,0.00035616,14]
[377611108,1754453456097,-1887.24,0.00035616,14]
[377611109,1754453456107,-1526.53,0.00035616,14]
[377611110,1754453456116,-400.0,0.00035616,14]
[377611111,1754453456126,-1150.45,0.00035616,14]
[377611112,1754453456136,-1247.62,0.00035616,14]
[377611113,1754453456145,-525.39,0.00035616,14]
[377611114,1754453456155,-2005.88,0.00035616,14]
[377611115,1754453456164,-400.0,0.00035616,14]
[377611116,1754453456174,-400.0,0.00035616,14]
[377611117,1754453456183,-539.04,0.00035616,14]
[377611118,1754453456193,-3397.4,0.00035616,14]
[377611119,1754453456203,-400.0,0.00035616,14]
[377611120,1754453456212,-400.86677367,0.00035616,14]
[377611121,1754453456222,-400.0,0.00035616,14]
[377611122,1754453456232,-2587.3,0.00035616,14]
[377611123,1754453456241,-1200.68,0.00035616,14]
[377611124,1754453456251,-1886.7,0.00035616,14]
[377611125,1754453456264,-400.0,0.00035616,14]
[377611126,1754453456274,-1785.63,0.00035616,14]
[377611127,1754453456283,-2078.26,0.00035616,14]
[377611128,1754453456293,-400.0,0.00035616,14]
[377611129,1754453456305,-424.18,0.00035616,14]
[377611130,1754453456315,-2700.93,0.00035616,14]
[377611131,1754453456325,-400.0,0.00035616,14]
[377611132,1754453456335,-876.27,0.00035616,14]
[377611133,1754453456347,-400.0,0.00035616,14]
[377611134,1754453456357,-400.0,0.00035616,14]
[377611135,1754453456366,-1574.43,0.00035616,14]
[377611136,1754453456376,-400.0,0.00035616,14]
[377611137,1754453456385,-400.0,0.00035616,14]
[377611138,1754453456395,-400.0,0.00035616,14]
[377611139,1754453456404,-915.1,0.00035616,14]
[377611140,1754453456414,-788.05,0.00035616,14]
[377611141,1754453456423,-400.0,0.00035616,14]
[377611142,1754453456433,-926.82,0.00035616,14]
[377611143,1754453456444,-1211.69,0.00035616,14]
[377611144,1754453456454,-953.17,0.00035616,14]
[377611145,1754453456464,-1096.99,0.00035616,14]
[377611146,1754453456477,-810.7,0.00035616,14]
[377611147,1754453456488,-739.62,0.00035616,14]
[377611148,1754453456499,-1356.85,0.00035616,14]
[377611149,1754453456510,-400.0,0.00035616,14]
[377611150,1754453456520,-400.0,0.00035616,14]
[377611151,1754453456531,-400.0,0.00035616,14]
[377611152,1754453456540,-969.08,0.00035616,14]
[377611153,1754453456550,-400.0,0.00035616,14]
[377611154,1754453456559,-1164.534129,0.00035616,14]
[377611155,1754453456569,-715.88,0.00035616,14]
[377611156,1754453456578,-1264.9,0.00035616,14]
[377611157,1754453456588,-400.0,0.00035616,14]
[377611158,1754453456598,-1804.39,0.00035616,14]
[377611159,1754453456608,-401.43,0.00035616,14]
[377611160,1754453456617,-400.0,0.00035616,14]
[377611161,1754453456626,-400.0,0.00035616,14]
[377611162,1754453456636,-1030.11,0.00035616,14]
[377611163,1754453456645,-595.81,0.00035616,14]
[377611164,1754453456655,-1807.69,0.00035616,14]
[377611165,1754453456664,-965.8,0.00035616,14]
[377611166,1754453456674,-965.8,0.00035616,14]
[377611167,1754453456683,-2074.67,0.00035616,14]
[377611168,1754453456693,-965.8,0.00035616,14]
[377611169,1754453456703,-965.8,0.00035616,14]
[377611170,1754453456713,-965.8,0.00035616,14]
[377611171,1754453456722,-965.8,0.00035616,14]
[377611172,1754453456732,-965.8,0.00035616,14]
[377611173,1754453456741,-965.8,0.00035616,14]